[Event "*** Titled Tuesday Blitz"]
[Site "Chess.com"]
[Date "2020.11.03"]
[Round "3"]
[White "GM_LOADING"]
[Black "Aygehovit1992"]
[Result "1-0"]
[WhiteElo "2482"]
[BlackElo "2622"]
[TimeControl "180+1"]
[EndTime "10:29:06 PST"]
[Termination "GM_LOADING won by resignation"]

1. Nf3 {[%clk 0:03:00.9]} 1... Nf6 {[%clk 0:02:59.3]} 2. g3 {[%clk 0:02:56.9]}
2... e6 {[%clk 0:03:00.2]} 3. Bg2 {[%clk 0:02:56.6]} 3... c5 {[%clk 0:03:01.1]}
4. O-O {[%clk 0:02:53.6]} 4... Nc6 {[%clk 0:03:02]} 5. c4 {[%clk 0:02:52.7]}
5... b6 {[%clk 0:03:01.4]} 6. d4 {[%clk 0:02:48]} 6... cxd4 {[%clk 0:03:02.3]}
7. Nxd4 {[%clk 0:02:47.9]} 7... Bb7 {[%clk 0:03:02.9]} 8. Nc3 {[%clk 0:02:48]}
8... Be7 {[%clk 0:03:02.4]} 9. Ndb5 {[%clk 0:02:41.6]} 9... d6 {[%clk
0:02:58.2]} 10. Bf4 {[%clk 0:02:37.3]} 10... e5 {[%clk 0:02:45.9]} 11. Bg5
{[%clk 0:02:37]} 11... Rc8 {[%clk 0:02:41.4]} 12. Bxf6 {[%clk 0:02:24.4]} 12...
gxf6 {[%clk 0:02:42.3]} 13. Nxa7 {[%clk 0:02:00.1]} 13... Nxa7 {[%clk
0:02:33.8]} 14. Bxb7 {[%clk 0:01:58.7]} 14... Rxc4 {[%clk 0:02:33]} 15. Qb3
{[%clk 0:01:56.9]} 15... Rc5 {[%clk 0:02:23.1]} 16. Qa4+ {[%clk 0:01:51.1]}
16... Qd7 {[%clk 0:02:09.6]} 17. Qxa7 {[%clk 0:01:41.5]} 17... O-O {[%clk
0:02:09.5]} 18. Qa6 {[%clk 0:01:28.2]} 18... d5 {[%clk 0:01:59.8]} 19. Bxd5
{[%clk 0:01:26]} 19... Rxd5 {[%clk 0:01:58.8]} 20. Nxd5 {[%clk 0:01:26.3]} 20...
Qxd5 {[%clk 0:01:59.7]} 21. Qxb6 {[%clk 0:01:24.7]} 21... Bc5 {[%clk 0:01:59.9]}
22. Qxf6 {[%clk 0:01:23.6]} 22... e4 {[%clk 0:01:57.8]} 23. e3 {[%clk
0:01:21.3]} 23... Re8 {[%clk 0:01:50.2]} 24. Rfd1 {[%clk 0:01:17.4]} 24... Qh5
{[%clk 0:01:50.1]} 25. Rd8 {[%clk 0:01:14.2]} 25... Rxd8 {[%clk 0:01:49.6]} 26.
Qxd8+ {[%clk 0:01:15.1]} 26... Kg7 {[%clk 0:01:50.5]} 27. Rd1 {[%clk 0:01:12.4]}
27... h6 {[%clk 0:01:46.4]} 28. Qd5 {[%clk 0:01:09.5]} 28... Qe2 {[%clk
0:01:43.6]} 29. Qd2 {[%clk 0:01:09.5]} 29... Qf3 {[%clk 0:01:43.5]} 30. Qc3+
{[%clk 0:01:07.7]} 30... Kg6 {[%clk 0:01:42.9]} 31. Rd5 {[%clk 0:01:06.6]} 31...
Be7 {[%clk 0:01:41.4]} 32. a4 {[%clk 0:00:58.2]} 32... h5 {[%clk 0:01:41.3]} 33.
Qc6+ {[%clk 0:00:39.8]} 33... Kg7 {[%clk 0:01:37.4]} 34. Qc3+ {[%clk 0:00:34.1]}
34... Bf6 {[%clk 0:01:37.3]} 35. Qd2 {[%clk 0:00:25.1]} 35... h4 {[%clk
0:01:37.1]} 36. Qd1 {[%clk 0:00:24.5]} 36... hxg3 {[%clk 0:01:36.3]} 37. Qxf3
{[%clk 0:00:23.6]} 1-0

[Event "*** Titled Tuesday Blitz"]
[Site "Chess.com"]
[Date "2020.11.03"]
[Round "3"]
[White "frederiksvane"]
[Black "mjray79"]
[Result "0-1"]
[WhiteElo "2624"]
[BlackElo "2487"]
[TimeControl "180+1"]
[EndTime "10:29:10 PST"]
[Termination "mjray79 won on time"]

1. e4 {[%clk 0:03:00.9]} 1... e5 {[%clk 0:02:59]} 2. Nf3 {[%clk 0:03:00.4]} 2...
Nc6 {[%clk 0:02:59.2]} 3. Bb5 {[%clk 0:02:59.7]} 3... a6 {[%clk 0:02:59.1]} 4.
Ba4 {[%clk 0:02:59.2]} 4... Nf6 {[%clk 0:02:57.4]} 5. O-O {[%clk 0:02:58.4]}
5... Be7 {[%clk 0:02:57.7]} 6. d3 {[%clk 0:02:58.2]} 6... b5 {[%clk 0:02:57.2]}
7. Bb3 {[%clk 0:02:56.6]} 7... d6 {[%clk 0:02:55.6]} 8. a3 {[%clk 0:02:38.8]}
8... O-O {[%clk 0:02:54.1]} 9. Nc3 {[%clk 0:02:39]} 9... Na5 {[%clk 0:02:52.9]}
10. Ba2 {[%clk 0:02:38.8]} 10... c5 {[%clk 0:02:50.6]} 11. b4 {[%clk 0:02:37.4]}
11... Nc6 {[%clk 0:02:49.7]} 12. Nd5 {[%clk 0:02:37.4]} 12... Be6 {[%clk
0:02:49]} 13. Nxf6+ {[%clk 0:02:26.3]} 13... Bxf6 {[%clk 0:02:48.8]} 14. Bxe6
{[%clk 0:02:26.5]} 14... fxe6 {[%clk 0:02:49.7]} 15. bxc5 {[%clk 0:02:27.2]}
15... dxc5 {[%clk 0:02:50.4]} 16. Be3 {[%clk 0:02:26.3]} 16... Nd4 {[%clk
0:02:50.3]} 17. Bxd4 {[%clk 0:02:26.5]} 17... exd4 {[%clk 0:02:49]} 18. Qe2
{[%clk 0:02:26]} 18... e5 {[%clk 0:02:48.7]} 19. a4 {[%clk 0:02:25.7]} 19... Qd7
{[%clk 0:02:48]} 20. Rfb1 {[%clk 0:02:25.8]} 20... Rfc8 {[%clk 0:02:38.3]} 21.
Nd2 {[%clk 0:02:13.3]} 21... Rab8 {[%clk 0:02:35.6]} 22. axb5 {[%clk 0:02:04.3]}
22... axb5 {[%clk 0:02:36.5]} 23. g3 {[%clk 0:02:01.6]} 23... Qe6 {[%clk
0:02:26.8]} 24. Kg2 {[%clk 0:01:32.3]} 24... Bg5 {[%clk 0:02:23.6]} 25. Nf3
{[%clk 0:01:10.3]} 25... Be7 {[%clk 0:02:22]} 26. Ra7 {[%clk 0:01:06.6]} 26...
c4 {[%clk 0:02:17.8]} 27. Nd2 {[%clk 0:00:46.2]} 27... Bg5 {[%clk 0:02:13.1]}
28. Nf3 {[%clk 0:00:39.2]} 28... Bf6 {[%clk 0:02:12.2]} 29. h4 {[%clk
0:00:39.5]} 29... cxd3 {[%clk 0:02:05.9]} 30. cxd3 {[%clk 0:00:20.2]} 30... b4
{[%clk 0:02:05.6]} 31. Nd2 {[%clk 0:00:19.1]} 31... Rc3 {[%clk 0:02:01.7]} 32.
Nc4 {[%clk 0:00:19]} 32... b3 {[%clk 0:01:59.5]} 33. Rb2 {[%clk 0:00:18.7]}
33... Be7 {[%clk 0:01:44.9]} 34. Ra5 {[%clk 0:00:16.4]} 34... Bd6 {[%clk
0:01:43.5]} 0-1

[Event "*** Titled Tuesday Blitz"]
[Site "Chess.com"]
[Date "2020.11.03"]
[Round "3"]
[White "MoreChessJulia"]
[Black "rynos0411"]
[Result "0-1"]
[WhiteElo "2069"]
[BlackElo "2478"]
[TimeControl "180+1"]
[EndTime "10:29:12 PST"]
[Termination "rynos0411 won by resignation"]

1. d4 {[%clk 0:02:59.7]} 1... d5 {[%clk 0:02:56.8]} 2. c4 {[%clk 0:02:58.8]}
2... c6 {[%clk 0:02:57]} 3. Nf3 {[%clk 0:02:58.3]} 3... Nf6 {[%clk 0:02:56.7]}
4. Nc3 {[%clk 0:02:58]} 4... e6 {[%clk 0:02:56.5]} 5. e3 {[%clk 0:02:57.2]} 5...
Bd6 {[%clk 0:02:54.1]} 6. Bd3 {[%clk 0:02:56.6]} 6... Nbd7 {[%clk 0:02:53.7]} 7.
a3 {[%clk 0:02:55.6]} 7... O-O {[%clk 0:02:53.3]} 8. Qe2 {[%clk 0:02:53]} 8...
dxc4 {[%clk 0:02:50.8]} 9. Bxc4 {[%clk 0:02:52.6]} 9... b5 {[%clk 0:02:51.7]}
10. Bd3 {[%clk 0:02:52.3]} 10... Bb7 {[%clk 0:02:50.8]} 11. e4 {[%clk
0:02:52.4]} 11... e5 {[%clk 0:02:50.5]} 12. d5 {[%clk 0:02:52.2]} 12... a6
{[%clk 0:02:48.1]} 13. dxc6 {[%clk 0:02:49.4]} 13... Bxc6 {[%clk 0:02:46.7]} 14.
O-O {[%clk 0:02:48.9]} 14... Qe7 {[%clk 0:02:43]} 15. b4 {[%clk 0:02:48.1]}
15... Rfd8 {[%clk 0:02:42]} 16. Bb2 {[%clk 0:02:47.8]} 16... Rac8 {[%clk
0:02:41.3]} 17. Rac1 {[%clk 0:02:46.7]} 17... Nb6 {[%clk 0:02:37.3]} 18. Rc2
{[%clk 0:02:38.7]} 18... Bb7 {[%clk 0:02:22.2]} 19. Rd1 {[%clk 0:02:34.3]} 19...
h6 {[%clk 0:02:18.1]} 20. g3 {[%clk 0:02:30.5]} 20... Nc4 {[%clk 0:02:16.3]} 21.
Bxc4 {[%clk 0:02:29.5]} 21... Rxc4 {[%clk 0:02:15]} 22. Nd5 {[%clk 0:02:23.9]}
22... Nxd5 {[%clk 0:02:07.6]} 23. exd5 {[%clk 0:02:21.6]} 23... Rxc2 {[%clk
0:01:55.1]} 24. Qxc2 {[%clk 0:02:20.4]} 24... Rc8 {[%clk 0:01:55]} 25. Qd2
{[%clk 0:02:14.2]} 25... Rc4 {[%clk 0:01:51.3]} 26. Nh4 {[%clk 0:02:12.5]} 26...
Bc8 {[%clk 0:01:37.4]} 27. Re1 {[%clk 0:02:10.7]} 27... Qc7 {[%clk 0:01:33.5]}
28. Bc1 {[%clk 0:01:55.7]} 28... Rc2 {[%clk 0:01:29.6]} 29. Qe3 {[%clk
0:01:53.3]} 29... Qc3 {[%clk 0:01:23.4]} 30. Qxc3 {[%clk 0:01:50.3]} 30... Rxc3
{[%clk 0:01:24.3]} 31. Ng2 {[%clk 0:01:47.2]} 31... Rd3 {[%clk 0:01:18.1]} 32.
Ne3 {[%clk 0:01:46.7]} 32... Bb7 {[%clk 0:01:18.3]} 33. Nf5 {[%clk 0:01:43]}
33... Rxd5 {[%clk 0:01:08.7]} 34. Bb2 {[%clk 0:01:42.4]} 34... Bf8 {[%clk
0:01:03.3]} 35. Bxe5 {[%clk 0:01:37.9]} 35... f6 {[%clk 0:01:01.3]} 36. Ne3
{[%clk 0:01:37.1]} 36... Rxe5 {[%clk 0:01:01.2]} 37. Rc1 {[%clk 0:01:34.3]}
37... Re7 {[%clk 0:00:55.5]} 38. Nf5 {[%clk 0:01:26.3]} 38... Rd7 {[%clk
0:00:55.3]} 39. h4 {[%clk 0:01:18.8]} 39... Rd3 {[%clk 0:00:45]} 40. Rc7 {[%clk
0:01:16.6]} 40... Rd1+ {[%clk 0:00:44.7]} 0-1

[Event "*** Titled Tuesday Blitz"]
[Site "Chess.com"]
[Date "2020.11.03"]
[Round "3"]
[White "Evachess2006"]
[Black "MariaFominykh"]
[Result "0-1"]
[WhiteElo "1640"]
[BlackElo "2325"]
[TimeControl "180+1"]
[EndTime "10:29:21 PST"]
[Termination "MariaFominykh won on time"]

1. e4 {[%clk 0:02:39.9]} 1... d6 {[%clk 0:02:58.2]} 2. d4 {[%clk 0:02:37.2]}
2... Nf6 {[%clk 0:02:58.7]} 3. Nc3 {[%clk 0:02:34.9]} 3... Nbd7 {[%clk
0:02:59.3]} 4. Nf3 {[%clk 0:02:30.5]} 4... e5 {[%clk 0:02:59.7]} 5. dxe5 {[%clk
0:02:25]} 5... dxe5 {[%clk 0:03:00.6]} 6. Bc4 {[%clk 0:02:23.6]} 6... Bb4 {[%clk
0:02:44.9]} 7. Bg5 {[%clk 0:02:06]} 7... O-O {[%clk 0:02:34.9]} 8. O-O {[%clk
0:01:59.9]} 8... c6 {[%clk 0:02:20]} 9. Bxf6 {[%clk 0:01:51.2]} 9... Qxf6 {[%clk
0:02:16.5]} 10. a3 {[%clk 0:01:31.8]} 10... Ba5 {[%clk 0:01:53.5]} 11. b4 {[%clk
0:01:18.9]} 11... Bb6 {[%clk 0:01:41]} 12. Na4 {[%clk 0:01:19.8]} 12... Bc7
{[%clk 0:01:40.7]} 13. Nc5 {[%clk 0:00:43.3]} 13... Nxc5 {[%clk 0:01:36.2]} 14.
bxc5 {[%clk 0:00:44.2]} 14... Qe7 {[%clk 0:01:36.5]} 15. Qd3 {[%clk 0:00:16.2]}
15... Bg4 {[%clk 0:01:09.7]} 16. Nd2 {[%clk 0:00:10]} 16... Qxc5 {[%clk
0:01:07.8]} 17. Kh1 {[%clk 0:00:04.9]} 17... b5 {[%clk 0:01:04.4]} 18. f3 {[%clk
0:00:05.8]} 18... bxc4 {[%clk 0:01:02.5]} 19. Qxc4 {[%clk 0:00:05.2]} 19... Qxc4
{[%clk 0:01:01.9]} 20. Nxc4 {[%clk 0:00:05.9]} 20... Be6 {[%clk 0:01:02.1]} 0-1

[Event "*** Titled Tuesday Blitz"]
[Site "Chess.com"]
[Date "2020.11.03"]
[Round "3"]
[White "MasterKroket"]
[Black "ftorodent"]
[Result "0-1"]
[WhiteElo "2418"]
[BlackElo "2663"]
[TimeControl "180+1"]
[EndTime "10:29:24 PST"]
[Termination "ftorodent won by resignation"]

1. d4 {[%clk 0:03:00.9]} 1... f5 {[%clk 0:02:59.1]} 2. c4 {[%clk 0:03:00.3]}
2... Nf6 {[%clk 0:02:58.7]} 3. Nf3 {[%clk 0:03:00.7]} 3... g6 {[%clk 0:02:58.3]}
4. Nc3 {[%clk 0:03:01.1]} 4... Bg7 {[%clk 0:02:58.4]} 5. g3 {[%clk 0:03:01.8]}
5... O-O {[%clk 0:02:57.9]} 6. Bg2 {[%clk 0:03:02.6]} 6... d6 {[%clk 0:02:58.3]}
7. O-O {[%clk 0:03:03.1]} 7... Qe8 {[%clk 0:02:58.5]} 8. d5 {[%clk 0:03:03.4]}
8... a5 {[%clk 0:02:58.5]} 9. Qc2 {[%clk 0:02:59.3]} 9... Na6 {[%clk 0:02:58.1]}
10. a3 {[%clk 0:02:54.7]} 10... Nc5 {[%clk 0:02:57]} 11. b3 {[%clk 0:02:51.8]}
11... c6 {[%clk 0:02:53.6]} 12. Nd4 {[%clk 0:02:45]} 12... e5 {[%clk 0:02:46.6]}
13. dxe6 {[%clk 0:02:42.2]} 13... Bxe6 {[%clk 0:02:46.8]} 14. Nxe6 {[%clk
0:02:41.8]} 14... Qxe6 {[%clk 0:02:46.9]} 15. Bb2 {[%clk 0:02:37.8]} 15... a4
{[%clk 0:02:44.8]} 16. Nxa4 {[%clk 0:02:31.5]} 16... Nxa4 {[%clk 0:02:39.4]} 17.
bxa4 {[%clk 0:02:32.4]} 17... Ra5 {[%clk 0:02:15.8]} 18. Rfd1 {[%clk 0:02:30.1]}
18... Rfa8 {[%clk 0:02:12.5]} 19. Bc3 {[%clk 0:01:58.4]} 19... Rxa4 {[%clk
0:02:02.9]} 20. Bb4 {[%clk 0:01:58.8]} 20... c5 {[%clk 0:01:59.3]} 21. Bxb7
{[%clk 0:01:53.9]} 21... R8a7 {[%clk 0:01:51.5]} 22. Bd5 {[%clk 0:01:53.2]}
22... Nxd5 {[%clk 0:01:50.3]} 23. cxd5 {[%clk 0:01:53.7]} 23... Qe4 {[%clk
0:01:47.1]} 24. Qxe4 {[%clk 0:01:33.2]} 24... fxe4 {[%clk 0:01:46.7]} 25. Bxc5
{[%clk 0:01:25.2]} 25... dxc5 {[%clk 0:01:46.6]} 26. Rac1 {[%clk 0:01:24.7]}
26... c4 {[%clk 0:01:41.4]} 27. d6 {[%clk 0:01:22.5]} 27... Rd7 {[%clk
0:01:41.2]} 28. Rb1 {[%clk 0:00:59.4]} 28... c3 {[%clk 0:01:25.9]} 29. Rb8+
{[%clk 0:00:59]} 29... Kf7 {[%clk 0:01:25.5]} 30. Rc8 {[%clk 0:00:59.7]} 30...
Rxa3 {[%clk 0:01:22.8]} 31. Rc7 {[%clk 0:00:56.2]} 31... Ke6 {[%clk 0:01:22.4]}
32. Rc6 {[%clk 0:00:51.6]} 32... Ra5 {[%clk 0:01:19.1]} 33. f3 {[%clk
0:00:24.9]} 33... Rd5 {[%clk 0:01:18.4]} 34. Rxd5 {[%clk 0:00:24.5]} 34... Kxd5
{[%clk 0:01:18.5]} 35. Rc7 {[%clk 0:00:25.1]} 35... Kxd6 {[%clk 0:01:18.5]} 0-1

[Event "*** Titled Tuesday Blitz"]
[Site "Chess.com"]
[Date "2020.11.03"]
[Round "3"]
[White "Igor_Lysyj"]
[Black "Anna_ChessMate"]
[Result "1-0"]
[WhiteElo "2821"]
[BlackElo "2532"]
[TimeControl "180+1"]
[EndTime "10:29:25 PST"]
[Termination "Igor_Lysyj won on time"]

1. d4 {[%clk 0:03:00.9]} 1... d5 {[%clk 0:02:59.4]} 2. Nf3 {[%clk 0:02:59.2]}
2... Nf6 {[%clk 0:02:59.2]} 3. g3 {[%clk 0:02:58.8]} 3... Bf5 {[%clk 0:02:58.8]}
4. c4 {[%clk 0:02:56.9]} 4... c6 {[%clk 0:02:58.5]} 5. Nc3 {[%clk 0:02:54.9]}
5... e6 {[%clk 0:02:58.4]} 6. Nh4 {[%clk 0:02:53.9]} 6... Bg6 {[%clk 0:02:55.9]}
7. Nxg6 {[%clk 0:02:53.6]} 7... hxg6 {[%clk 0:02:56.8]} 8. Qd3 {[%clk
0:02:53.3]} 8... Nbd7 {[%clk 0:02:56]} 9. Bg2 {[%clk 0:02:53.4]} 9... Be7 {[%clk
0:02:55.7]} 10. O-O {[%clk 0:02:53.1]} 10... O-O {[%clk 0:02:51.8]} 11. Rd1
{[%clk 0:02:52.9]} 11... Qc7 {[%clk 0:02:19.9]} 12. b3 {[%clk 0:02:51.1]} 12...
Rad8 {[%clk 0:02:16.8]} 13. Bb2 {[%clk 0:02:50.3]} 13... Rfe8 {[%clk 0:01:39.8]}
14. Rac1 {[%clk 0:02:47.7]} 14... Qb8 {[%clk 0:01:39.3]} 15. e3 {[%clk
0:02:46.5]} 15... Nf8 {[%clk 0:01:23.8]} 16. Qb1 {[%clk 0:02:45.6]} 16... N6d7
{[%clk 0:01:16.7]} 17. e4 {[%clk 0:02:43.3]} 17... dxe4 {[%clk 0:01:12.7]} 18.
Nxe4 {[%clk 0:02:42.6]} 18... Nf6 {[%clk 0:00:52.3]} 19. Ng5 {[%clk 0:02:42.2]}
19... N8h7 {[%clk 0:00:49.2]} 20. Nf3 {[%clk 0:02:41.2]} 20... c5 {[%clk
0:00:36.3]} 21. dxc5 {[%clk 0:02:31.1]} 21... Bxc5 {[%clk 0:00:37.2]} 22. Ne5
{[%clk 0:02:30]} 22... Qc7 {[%clk 0:00:35.4]} 23. Rxd8 {[%clk 0:02:27.8]} 23...
Rxd8 {[%clk 0:00:36.3]} 24. Rd1 {[%clk 0:02:27.8]} 24... Rxd1+ {[%clk
0:00:30.1]} 25. Qxd1 {[%clk 0:02:26.7]} 25... Nf8 {[%clk 0:00:30.9]} 26. Qf3
{[%clk 0:02:25.7]} 26... b6 {[%clk 0:00:26.2]} 27. h3 {[%clk 0:02:18.3]} 27...
N8d7 {[%clk 0:00:22.7]} 28. Nc6 {[%clk 0:02:16.5]} 28... a5 {[%clk 0:00:18.4]}
29. Qd3 {[%clk 0:02:15.1]} 29... Kf8 {[%clk 0:00:16.5]} 30. a3 {[%clk
0:02:11.5]} 30... Ke8 {[%clk 0:00:15.7]} 31. b4 {[%clk 0:02:10.2]} 31... axb4
{[%clk 0:00:13]} 32. axb4 {[%clk 0:02:09.6]} 32... Bd6 {[%clk 0:00:13.6]} 33.
Qa3 {[%clk 0:02:08.6]} 33... Kf8 {[%clk 0:00:06]} 34. Qa8+ {[%clk 0:02:06.6]}
34... Ne8 {[%clk 0:00:06.6]} 35. Bd4 {[%clk 0:02:00]} 35... Ne5 {[%clk
0:00:05.5]} 36. c5 {[%clk 0:01:41.4]} 36... bxc5 {[%clk 0:00:03.1]} 37. bxc5
{[%clk 0:01:40.8]} 1-0

[Event "*** Titled Tuesday Blitz"]
[Site "Chess.com"]
[Date "2020.11.03"]
[Round "3"]
[White "elohunter1999"]
[Black "tan275"]
[Result "1-0"]
[WhiteElo "2487"]
[BlackElo "2192"]
[TimeControl "180+1"]
[EndTime "10:29:30 PST"]
[Termination "elohunter1999 won by resignation"]

1. e4 {[%clk 0:03:00.9]} 1... c6 {[%clk 0:02:58.8]} 2. d4 {[%clk 0:02:57.4]}
2... d5 {[%clk 0:02:58.5]} 3. e5 {[%clk 0:02:57.8]} 3... Bf5 {[%clk 0:02:58.2]}
4. Nf3 {[%clk 0:02:57.8]} 4... e6 {[%clk 0:02:57.6]} 5. Be2 {[%clk 0:02:58.2]}
5... Ne7 {[%clk 0:02:56]} 6. O-O {[%clk 0:02:57.9]} 6... Bg6 {[%clk 0:02:55.9]}
7. Nbd2 {[%clk 0:02:57.1]} 7... Nf5 {[%clk 0:02:54]} 8. Nb3 {[%clk 0:02:56.9]}
8... Nd7 {[%clk 0:02:53.1]} 9. a4 {[%clk 0:02:56.5]} 9... Be7 {[%clk 0:02:42.8]}
10. a5 {[%clk 0:02:56.3]} 10... a6 {[%clk 0:02:41.9]} 11. Bd2 {[%clk 0:02:56]}
11... h5 {[%clk 0:02:38.3]} 12. c4 {[%clk 0:02:51.7]} 12... h4 {[%clk
0:02:25.8]} 13. h3 {[%clk 0:02:51.4]} 13... Bh5 {[%clk 0:02:16]} 14. cxd5 {[%clk
0:02:41.3]} 14... cxd5 {[%clk 0:02:15.3]} 15. Ne1 {[%clk 0:02:41.1]} 15... Bxe2
{[%clk 0:02:08.6]} 16. Qxe2 {[%clk 0:02:42]} 16... Rh6 {[%clk 0:02:03.5]} 17.
Bxh6 {[%clk 0:02:41]} 17... gxh6 {[%clk 0:01:56.7]} 18. Nd3 {[%clk 0:02:38.2]}
18... Rc8 {[%clk 0:01:40.4]} 19. Rac1 {[%clk 0:02:36.6]} 19... Rc4 {[%clk
0:01:39.5]} 20. Nf4 {[%clk 0:01:57.2]} 20... Bg5 {[%clk 0:01:26.2]} 21. Rxc4
{[%clk 0:01:42.7]} 21... dxc4 {[%clk 0:01:24.4]} 22. Nxe6 {[%clk 0:01:43]} 22...
fxe6 {[%clk 0:01:20.5]} 23. Qxc4 {[%clk 0:01:43.2]} 23... Kf7 {[%clk 0:01:13.5]}
24. f4 {[%clk 0:01:29.5]} 24... Ne3 {[%clk 0:01:06.6]} 25. fxg5+ {[%clk
0:01:29.4]} 25... Nxf1 {[%clk 0:01:05.5]} 26. Qxf1+ {[%clk 0:01:29.2]} 26... Kg7
{[%clk 0:01:00.8]} 27. gxh6+ {[%clk 0:01:26.8]} 27... Kxh6 {[%clk 0:01:00.8]}
28. Qf4+ {[%clk 0:01:23]} 28... Qg5 {[%clk 0:00:53]} 29. Qxg5+ {[%clk 0:01:22]}
29... Kxg5 {[%clk 0:00:53.9]} 30. Nc5 {[%clk 0:01:05.8]} 30... Nxc5 {[%clk
0:00:50.9]} 31. dxc5 {[%clk 0:01:06.7]} 31... Kf5 {[%clk 0:00:50.9]} 32. b4
{[%clk 0:00:58.5]} 32... Kxe5 {[%clk 0:00:47.2]} 33. b5 {[%clk 0:00:58.3]} 33...
Kd5 {[%clk 0:00:42.8]} 34. c6 {[%clk 0:00:58]} 34... bxc6 {[%clk 0:00:35.3]} 35.
bxa6 {[%clk 0:00:58]} 1-0

[Event "*** Titled Tuesday Blitz"]
[Site "Chess.com"]
[Date "2020.11.03"]
[Round "3"]
[White "Kapibara_Warri0r"]
[Black "dosto07"]
[Result "0-1"]
[WhiteElo "2127"]
[BlackElo "2354"]
[TimeControl "180+1"]
[EndTime "10:29:37 PST"]
[Termination "dosto07 won by resignation"]

1. e4 {[%clk 0:03:00.9]} 1... e5 {[%clk 0:02:58.5]} 2. Nf3 {[%clk 0:03:00.6]}
2... Nc6 {[%clk 0:02:58.6]} 3. Bb5 {[%clk 0:03:00.7]} 3... a6 {[%clk 0:02:58.9]}
4. Ba4 {[%clk 0:03:01.3]} 4... Nf6 {[%clk 0:02:59]} 5. O-O {[%clk 0:03:01.7]}
5... Be7 {[%clk 0:02:59.6]} 6. Re1 {[%clk 0:03:01.3]} 6... b5 {[%clk 0:03:00]}
7. Bb3 {[%clk 0:03:01.8]} 7... d6 {[%clk 0:02:57.7]} 8. a4 {[%clk 0:03:00.7]}
8... b4 {[%clk 0:02:56.6]} 9. d4 {[%clk 0:03:00.4]} 9... Bg4 {[%clk 0:02:37.8]}
10. dxe5 {[%clk 0:02:27.7]} 10... Nxe5 {[%clk 0:02:32]} 11. Nbd2 {[%clk
0:02:22]} 11... O-O {[%clk 0:02:30.3]} 12. h3 {[%clk 0:02:19.4]} 12... Nxf3+
{[%clk 0:02:22.5]} 13. Nxf3 {[%clk 0:02:17]} 13... Be6 {[%clk 0:02:22.9]} 14.
Bd5 {[%clk 0:02:02.7]} 14... Nxd5 {[%clk 0:02:17.9]} 15. exd5 {[%clk 0:02:02.4]}
15... Bf5 {[%clk 0:02:18.4]} 16. Nd4 {[%clk 0:02:00.6]} 16... Bd7 {[%clk
0:02:17.1]} 17. Qf3 {[%clk 0:01:40]} 17... Bf6 {[%clk 0:02:14.6]} 18. c3 {[%clk
0:01:22.6]} 18... Re8 {[%clk 0:02:09.9]} 19. Rxe8+ {[%clk 0:01:11]} 19... Qxe8
{[%clk 0:02:08.9]} 20. Bd2 {[%clk 0:01:11.5]} 20... Bxa4 {[%clk 0:01:57.5]} 21.
Nf5 {[%clk 0:01:10.8]} 21... Bd7 {[%clk 0:01:52.6]} 22. Re1 {[%clk 0:01:03.5]}
22... Qd8 {[%clk 0:01:48.5]} 23. Ng3 {[%clk 0:00:54.7]} 23... bxc3 {[%clk
0:01:44.4]} 24. bxc3 {[%clk 0:00:52.1]} 24... Bg5 {[%clk 0:01:28.4]} 25. Bxg5
{[%clk 0:00:40.2]} 25... Qxg5 {[%clk 0:01:27.7]} 26. Qe4 {[%clk 0:00:30.6]}
26... h6 {[%clk 0:01:15.4]} 27. h4 {[%clk 0:00:20.4]} 27... Qf6 {[%clk
0:01:02.3]} 28. Nh5 {[%clk 0:00:19.3]} 28... Qxc3 {[%clk 0:00:57.8]} 29. Qe7
{[%clk 0:00:17.3]} 29... Re8 {[%clk 0:00:53.3]} 0-1

[Event "*** Titled Tuesday Blitz"]
[Site "Chess.com"]
[Date "2020.11.03"]
[Round "3"]
[White "Azerichess"]
[Black "Nikolakis2014"]
[Result "1-0"]
[WhiteElo "3017"]
[BlackElo "2744"]
[TimeControl "180+1"]
[EndTime "10:29:42 PST"]
[Termination "Azerichess won by resignation"]

1. e4 {[%clk 0:02:59.8]} 1... c6 {[%clk 0:02:58.2]} 2. d4 {[%clk 0:02:54.8]}
2... d5 {[%clk 0:02:58.2]} 3. exd5 {[%clk 0:02:55.5]} 3... cxd5 {[%clk
0:02:57.8]} 4. c4 {[%clk 0:02:56.2]} 4... Nf6 {[%clk 0:02:57.2]} 5. Nc3 {[%clk
0:02:56.1]} 5... e6 {[%clk 0:02:57.5]} 6. Nf3 {[%clk 0:02:55.3]} 6... Be7 {[%clk
0:02:57.4]} 7. cxd5 {[%clk 0:02:54.1]} 7... Nxd5 {[%clk 0:02:56.5]} 8. Bd3
{[%clk 0:02:54.7]} 8... O-O {[%clk 0:02:54.7]} 9. O-O {[%clk 0:02:55.3]} 9...
Nc6 {[%clk 0:02:54.7]} 10. Re1 {[%clk 0:02:54.6]} 10... Bf6 {[%clk 0:02:54.6]}
11. Nxd5 {[%clk 0:02:51.6]} 11... exd5 {[%clk 0:02:49.3]} 12. Ne5 {[%clk
0:02:51.2]} 12... Nxd4 {[%clk 0:01:55.2]} 13. Bxh7+ {[%clk 0:02:50.5]} 13...
Kxh7 {[%clk 0:01:55.3]} 14. Qxd4 {[%clk 0:02:51.3]} 14... Kg8 {[%clk 0:01:54.7]}
15. Bf4 {[%clk 0:02:49.2]} 15... Be6 {[%clk 0:01:54.6]} 16. Rad1 {[%clk
0:02:44.4]} 16... Qa5 {[%clk 0:01:53.1]} 17. a3 {[%clk 0:02:40.2]} 17... Rac8
{[%clk 0:01:51.4]} 18. Qe3 {[%clk 0:02:33.6]} 18... Rfe8 {[%clk 0:01:38.8]} 19.
Qg3 {[%clk 0:02:29.9]} 19... d4 {[%clk 0:01:35.7]} 20. h4 {[%clk 0:02:23.6]}
20... Bf5 {[%clk 0:01:30.2]} 21. b4 {[%clk 0:02:13.1]} 21... Qd5 {[%clk
0:01:28.8]} 22. h5 {[%clk 0:01:36.8]} 22... d3 {[%clk 0:01:20.9]} 23. h6 {[%clk
0:01:33.1]} 23... g6 {[%clk 0:01:18.5]} 24. Nf3 {[%clk 0:01:27.2]} 24... Re4
{[%clk 0:01:05.7]} 25. Rxe4 {[%clk 0:01:20]} 25... Bxe4 {[%clk 0:01:04.8]} 26.
Be5 {[%clk 0:01:15.6]} 26... Bxf3 {[%clk 0:01:00.6]} 27. Bxf6 {[%clk 0:01:15.8]}
27... Bxd1 {[%clk 0:00:54.8]} 28. Qh3 {[%clk 0:01:11.1]} 28... Kh7 {[%clk
0:00:18.9]} 29. Qxc8 {[%clk 0:01:09.8]} 29... g5 {[%clk 0:00:19.1]} 30. Qh8+
{[%clk 0:01:07.4]} 30... Kg6 {[%clk 0:00:19.3]} 31. Qg7+ {[%clk 0:01:07.7]}
31... Kf5 {[%clk 0:00:19.3]} 32. Qxg5+ {[%clk 0:01:03.8]} 32... Ke6 {[%clk
0:00:17.2]} 33. Qxd5+ {[%clk 0:01:04]} 33... Kxd5 {[%clk 0:00:17.5]} 34. h7
{[%clk 0:01:04.9]} 34... d2 {[%clk 0:00:14.8]} 35. h8=Q {[%clk 0:01:05.7]} 1-0